fUST/lending_fUST_20250607
["ID","MTS","AMOUNT","RATE_DAILY","PERIOD"]
[364822300,1749255043604,-360.0,0.00020821,2]
[364822301,1749255043613,-360.0,0.00020821,2]
[364822302,1749255043623,-440.0,0.00020821,2]
[364822303,1749255043633,-440.0,0.00020821,2]
[364822304,1749255043643,-440.0,0.00020821,2]
[364822305,1749255043652,-440.0,0.00020821,2]
[364822306,1749255043662,-440.0,0.00020821,2]
[364822307,1749255043671,-640.15,0.00020821,2]
[364822308,1749255043681,-4753.64,0.00020821,2]
[364822309,1749255043691,-440.0,0.00020821,2]
[364822310,1749255043700,-1050.35,0.00020821,2]
[364822311,1749255043796,-440.0,0.00020821,2]
[364822312,1749255043808,-3090.81,0.00020821,2]
[364822313,1749255043817,-440.0,0.00020821,2]
[364822314,1749255043827,-704.83,0.00020821,2]
[364822315,1749255043836,-440.0,0.00020821,2]
[364822316,1749255043846,-440.0,0.00020821,2]
[364822317,1749255043855,-1715.61,0.00020821,2]
[364822318,1749255043865,-2851.73,0.00020821,2]
[364822319,1749255043874,-1510.1,0.00020821,2]
[364822320,1749255043883,-491.82,0.00020821,2]
[364822321,1749255043893,-440.0,0.00020821,2]
[364822322,1749255043903,-440.0,0.00020821,2]
[364822323,1749255043912,-577.36,0.00020821,2]
[364822324,1749255043922,-440.0,0.00020821,2]
[364822325,1749255043931,-440.0,0.00020821,2]
[364822326,1749255043941,-440.0,0.00020821,2]
[364822327,1749255043950,-440.0,0.00020821,2]
[364822328,1749255043959,-440.0,0.00020821,2]
[364822329,1749255043969,-440.0,0.00020821,2]
[364822330,1749255043978,-440.0,0.00020821,2]
[364822331,1749255043989,-440.0,0.00020821,2]
[364822332,1749255043998,-440.0,0.00020821,2]
[364822333,1749255044007,-1349.1,0.00020821,2]
[364822334,1749255044017,-440.0,0.00020821,2]
[364822335,1749255044026,-440.0,0.00020821,2]
[364822336,1749255044035,-440.0,0.00020821,2]
[364822337,1749255044045,-440.0,0.00020821,2]
[364822338,1749255044054,-440.0,0.00020821,2]
[364822339,1749255044064,-440.0,0.00020821,2]
[364822340,1749255044073,-440.0,0.00020821,2]
[364822341,1749255044083,-440.0,0.00020821,2]
[364822342,1749255044092,-440.0,0.00020821,2]
[364822343,1749255044102,-440.0,0.00020821,2]
[364822344,1749255044112,-440.0,0.00020821,2]
[364822345,1749255044121,-440.0,0.00020821,2]
[364822346,1749255044130,-1632.05,0.00020821,2]
[364822347,1749255044140,-440.0,0.00020821,2]
[364822348,1749255044149,-440.0,0.00020821,2]
[364822349,1749255044158,-370.0,0.00020821,2]
[364822350,1749255044168,-440.0,0.00020821,2]
[364822351,1749255044177,-440.0,0.00020821,2]
[364822352,1749255044186,-440.0,0.00020821,2]
[364822353,1749255044196,-440.0,0.00020821,2]
[364822354,1749255044205,-878.96,0.00020821,2]
[364822355,1749255044214,-440.0,0.00020821,2]
[364822356,1749255044224,-596.71,0.00020821,2]
[364822357,1749255044234,-2752.03,0.00020821,2]
[364822358,1749255044243,-440.0,0.00020821,2]
[364822359,1749255044253,-579.14,0.00020821,2]
[364822360,1749255044262,-440.0,0.00020821,2]
[364822361,1749255044271,-440.0,0.00020821,2]
[364822362,1749255044280,-3769.0,0.00020821,2]
[364822363,1749255044293,-1680.78,0.00020821,2]
[364822364,1749255044305,-420.0,0.00020893,2]
[364822365,1749255044315,-420.0,0.00020893,2]
[364822366,1749255044325,-369.65,0.000209,2]
[364822367,1749255044334,-55532.85,0.000209,2]
[364822368,1749255044343,-715.08884394,0.00020934,4]
[364822369,1749255044353,-701.71,0.00021094,2]
[364822370,1749255044363,-440.0,0.00021095,2]
[364822371,1749255044372,-440.0,0.00021095,2]
[364822372,1749255044382,-151.0,0.00021095,2]
[364822373,1749255044392,-350.0,0.00021095,2]
[364822374,1749255044402,-440.0,0.00021095,2]
[364822375,1749255044412,-360.0,0.00021095,2]
[364822376,1749255044421,-440.0,0.00021095,2]
[364822377,1749255044431,-440.0,0.00021095,2]
[364822378,1749255044440,-640.15,0.00021095,2]
[364822379,1749255044450,-4753.64,0.00021095,2]
[364822380,1749255044460,-518.21125641,0.00021095,2]
[364822381,1749255044469,-1050.35,0.00021095,2]
[364822382,1749255044479,-440.0,0.00021095,2]
[364822383,1749255044489,-3090.81,0.00021095,2]
[364822384,1749255044499,-440.0,0.00021095,2]
[364822385,1749255044509,-704.83,0.00021095,2]
[364822386,1749255044518,-440.0,0.00021095,2]
[364822387,1749255044528,-440.0,0.00021095,2]
[364822388,1749255044538,-1715.61,0.00021095,2]
[364822389,1749255044547,-2851.73,0.00021095,2]
[364822390,1749255044556,-1510.1,0.00021095,2]
[364822391,1749255044566,-491.82,0.00021095,2]
[364822392,1749255044576,-440.0,0.00021095,2]
[364822393,1749255044585,-440.0,0.00021095,2]
[364822394,1749255044596,-577.36,0.00021095,2]
[364822395,1749255044605,-440.0,0.00021095,2]
[364822396,1749255044615,-440.0,0.00021095,2]
[364822397,1749255044624,-440.0,0.00021095,2]
[364822398,1749255044634,-440.0,0.00021095,2]
[364822399,1749255044643,-440.0,0.00021095,2]
[364822400,1749255044652,-440.0,0.00021095,2]
[364822401,1749255044662,-440.0,0.00021095,2]
[364822402,1749255044671,-440.0,0.00021095,2]
[364822403,1749255044681,-440.0,0.00021095,2]
[364822404,1749255044690,-1192.40493688,0.00021095,2]
[364822405,1749255044710,-156.69506312,0.00021095,2]
[364822406,1749255044719,-321.92203999,0.00021095,2]
[364822407,1749255044731,-440.0,0.00021095,2]
[364822408,1749255044740,-440.0,0.00021095,2]
[364822409,1749255044750,-440.0,0.00021095,2]
[364822410,1749255044759,-440.0,0.00021095,2]
[364822411,1749255044769,-440.0,0.00021095,2]
[364822412,1749255044779,-440.0,0.00021095,2]
[364822413,1749255044788,-440.0,0.00021095,2]
[364822414,1749255044798,-440.0,0.00021095,2]
[364822415,1749255044808,-440.0,0.00021095,2]
[364822416,1749255044818,-440.0,0.00021095,2]
[364822417,1749255044827,-440.0,0.00021095,2]
[364822418,1749255044837,-1632.05,0.00021095,2]
[364822419,1749255044846,-440.0,0.00021095,2]
[364822420,1749255044855,-440.0,0.00021095,2]
[364822421,1749255044864,-440.0,0.00021095,2]
[364822422,1749255044874,-440.0,0.00021095,2]
[364822423,1749255044883,-440.0,0.00021095,2]
[364822424,1749255044893,-440.0,0.00021095,2]
[364822425,1749255044902,-878.96,0.00021095,2]
[364822426,1749255044912,-440.0,0.00021095,2]
[364822427,1749255044921,-596.71,0.00021095,2]
[364822428,1749255044930,-2752.03,0.00021095,2]
[364822429,1749255044939,-330.0,0.00021095,2]
[364822430,1749255044948,-579.14,0.00021095,2]
[364822431,1749255044958,-440.0,0.00021095,2]
[364822432,1749255044968,-440.0,0.00021095,2]
[364822433,1749255044977,-3769.0,0.00021095,2]
[364822434,1749255044987,-1680.78,0.00021095,2]
[364822435,1749255044997,-715.08884394,0.00021107,4]
[364822436,1749255045006,-1200.0,0.00021148,2]
[364822437,1749255045016,-1978.95106066,0.0002127,2]
[364822438,1749255045025,-715.08884394,0.00021279,5]
[364822439,1749255045035,-506.8533221,0.00021306,2]
[364822440,1749255045043,-500.0,0.00021306,2]
[364822441,1749255045052,-5000.0,0.00021355,2]
[364822442,1749255045064,-493.08,0.00021369,2]
[364822443,1749255045074,-440.0,0.00021369,2]
[364822444,1749255045084,-440.0,0.00021369,2]
[364822445,1749255045094,-440.0,0.00021369,2]
[364822446,1749255045103,-440.0,0.00021369,2]
[364822447,1749255045112,-640.15,0.00021369,2]
[364822448,1749255045121,-4753.64,0.00021369,2]
[364822449,1749255045131,-1050.35,0.00021369,2]
[364822450,1749255045140,-440.0,0.00021369,2]
[364822451,1749255045149,-3090.81,0.00021369,2]
[364822452,1749255045159,-440.0,0.00021369,2]
[364822453,1749255045168,-704.83,0.00021369,2]
[364822454,1749255045177,-440.0,0.00021369,2]
[364822455,1749255045187,-440.0,0.00021369,2]
[364822456,1749255045197,-151.0,0.00021369,2]
[364822457,1749255045207,-1715.61,0.00021369,2]
[364822458,1749255045217,-2851.73,0.00021369,2]
[364822459,1749255045227,-1510.1,0.00021369,2]
[364822460,1749255045237,-491.82,0.00021369,2]
[364822461,1749255045246,-440.0,0.00021369,2]
[364822462,1749255045255,-440.0,0.00021369,2]
[364822463,1749255045265,-577.36,0.00021369,2]
[364822464,1749255045274,-440.0,0.00021369,2]
[364822465,1749255045283,-440.0,0.00021369,2]
[364822466,1749255045293,-440.0,0.00021369,2]
[364822467,1749255045302,-440.0,0.00021369,2]
[364822468,1749255045312,-440.0,0.00021369,2]
[364822469,1749255045322,-168.696028,0.00021369,2]
[364822470,1749255045331,-440.0,0.00021369,2]
[364822471,1749255045341,-330.0,0.00021369,2]
[364822472,1749255045350,-440.0,0.00021369,2]
[364822473,1749255045360,-350.0,0.00021369,2]
[364822474,1749255045369,-1349.1,0.00021369,2]
[364822475,1749255045378,-440.0,0.00021369,2]
[364822476,1749255045387,-440.0,0.00021369,2]
[364822477,1749255045396,-440.0,0.00021369,2]
[364822478,1749255045405,-440.0,0.00021369,2]
[364822479,1749255045414,-440.0,0.00021369,2]
[364822480,1749255045424,-350.0,0.00021369,2]
[364822481,1749255045433,-440.0,0.00021369,2]
[364822482,1749255045443,-440.0,0.00021369,2]
[364822483,1749255045452,-440.0,0.00021369,2]
[364822484,1749255045461,-440.0,0.00021369,2]
[364822485,1749255045471,-440.0,0.00021369,2]
[364822486,1749255045481,-440.0,0.00021369,2]
[364822487,1749255045490,-1632.05,0.00021369,2]
[364822488,1749255045500,-440.0,0.00021369,2]
[364822489,1749255045509,-440.0,0.00021369,2]
[364822490,1749255045519,-440.0,0.00021369,2]
[364822491,1749255045529,-440.0,0.00021369,2]
[364822492,1749255045538,-440.0,0.00021369,2]
[364822493,1749255045547,-878.96,0.00021369,2]
[364822494,1749255045632,-440.0,0.00021369,2]
[364822495,1749255045642,-596.71,0.00021369,2]
[364822496,1749255045651,-2752.03,0.00021369,2]
[364822497,1749255045660,-579.14,0.00021369,2]
[364822498,1749255045670,-440.0,0.00021369,2]
[364822499,1749255045680,-440.0,0.00021369,2]
[364822500,1749255045689,-3769.0,0.00021369,2]
[364822501,1749255045698,-1680.78,0.00021369,2]
[364822502,1749255045707,-500.0,0.00021372,2]
[364822503,1749255045716,-715.08884394,0.00021452,5]
[364822504,1749255045726,-232.13,0.000216,2]
[364822505,1749255045738,-715.08884394,0.00021624,5]
[364822506,1749255045748,-701.71,0.00021642,2]
[364822507,1749255045757,-208974.18344,0.00021642,2]
[364822508,1749255045767,-440.0,0.00021643,2]
[364822509,1749255045777,-440.0,0.00021643,2]
[364822510,1749255045786,-440.0,0.00021643,2]
[364822511,1749255045795,-330.0,0.00021643,2]
[364822512,1749255045809,-640.15,0.00021643,2]
[364822513,1749255045819,-4753.64,0.00021643,2]
[364822514,1749255045828,-1050.35,0.00021643,2]
[364822515,1749255045837,-440.0,0.00021643,2]
[364822516,1749255045847,-3090.81,0.00021643,2]
[364822517,1749255045856,-440.0,0.00021643,2]
[364822518,1749255045866,-704.83,0.00021643,2]
[364822519,1749255045875,-330.0,0.00021643,2]
[364822520,1749255045884,-330.0,0.00021643,2]
[364822521,1749255045894,-1715.61,0.00021643,2]
[364822522,1749255045904,-2851.73,0.00021643,2]
[364822523,1749255045913,-1510.1,0.00021643,2]
[364822524,1749255045922,-491.82,0.00021643,2]
[364822525,1749255045932,-440.0,0.00021643,2]
[364822526,1749255045941,-440.0,0.00021643,2]
[364822527,1749255045950,-577.36,0.00021643,2]
[364822528,1749255045959,-440.0,0.00021643,2]
[364822529,1749255045969,-330.0,0.00021643,2]
[364822530,1749255045978,-440.0,0.00021643,2]
[364822531,1749255045987,-440.0,0.00021643,2]
[364822532,1749255045997,-330.0,0.00021643,2]
[364822533,1749255046006,-440.0,0.00021643,2]
[364822534,1749255046015,-440.0,0.00021643,2]
[364822535,1749255046024,-1349.1,0.00021643,2]
[364822536,1749255046033,-440.0,0.00021643,2]
[364822537,1749255046051,-440.0,0.00021643,2]
[364822538,1749255046062,-440.0,0.00021643,2]
[364822539,1749255046072,-456.471907,0.00021643,2]
[364822540,1749255046082,-330.0,0.00021643,2]
[364822541,1749255046092,-290.0,0.00021643,2]
[364822542,1749255046102,-440.0,0.00021643,2]
[364822543,1749255046112,-440.0,0.00021643,2]
[364822544,1749255046123,-440.0,0.00021643,2]
[364822545,1749255046132,-340.0,0.00021643,2]
[364822546,1749255046142,-440.0,0.00021643,2]
[364822547,1749255046152,-1632.05,0.00021643,2]
[364822548,1749255046163,-340.0,0.00021643,2]
[364822549,1749255046173,-440.0,0.00021643,2]
[364822550,1749255046183,-440.0,0.00021643,2]
[364822551,1749255046193,-330.0,0.00021643,2]
[364822552,1749255046203,-440.0,0.00021643,2]
[364822553,1749255046213,-878.96,0.00021643,2]
[364822554,1749255046223,-440.0,0.00021643,2]
[364822555,1749255046234,-596.71,0.00021643,2]
[364822556,1749255046244,-2752.03,0.00021643,2]
[364822557,1749255046254,-579.14,0.00021643,2]
[364822558,1749255046263,-440.0,0.00021643,2]
[364822559,1749255046274,-440.0,0.00021643,2]
[364822560,1749255046284,-3769.0,0.00021643,2]
[364822561,1749255046293,-1680.78,0.00021643,2]
[364822562,1749255046303,-500.0,0.00021791,2]
[364822563,1749255046313,-715.08884394,0.00021797,6]
[364822564,1749255046324,-1000.0,0.00021854,2]
[364822565,1749255046334,-3000.0,0.000219,2]
[364822566,1749255046344,-5000.0,0.00021903,2]
[364822567,1749255046354,-5762.045224,0.0002191,2]
[364822568,1749255046364,-701.71,0.00021916,2]
[364822569,1749255046373,-440.0,0.00021917,2]
[364822570,1749255046383,-500.0,0.00021917,2]
[364822571,1749255046393,-320.0,0.00021917,2]
[364822572,1749255046403,-320.0,0.00021917,2]
[364822573,1749255046412,-640.15,0.00021917,2]
[364822574,1749255046422,-4753.64,0.00021917,2]
[364822575,1749255046431,-1050.35,0.00021917,2]
[364822576,1749255046441,-323.85,0.00021917,2]
[364822577,1749255046451,-3090.81,0.00021917,2]
[364822578,1749255046461,-440.0,0.00021917,2]
[364822579,1749255046470,-704.83,0.00021917,2]
[364822580,1749255046480,-1715.61,0.00021917,2]
[364822581,1749255046491,-2851.73,0.00021917,2]
[364822582,1749255046500,-1510.1,0.00021917,2]
[364822583,1749255046511,-491.82,0.00021917,2]
[364822584,1749255046521,-440.0,0.00021917,2]
[364822585,1749255046531,-440.0,0.00021917,2]
[364822586,1749255046541,-577.36,0.00021917,2]
[364822587,1749255046552,-440.0,0.00021917,2]
[364822588,1749255046561,-439.95897274,0.00021917,2]
[364822589,1749255046571,-440.0,0.00021917,2]
[364822590,1749255046581,-440.0,0.00021917,2]
[364822591,1749255046591,-440.0,0.00021917,2]
[364822592,1749255046600,-1349.1,0.00021917,2]
[364822593,1749255046609,-440.0,0.00021917,2]
[364822594,1749255046619,-440.0,0.00021917,2]
[364822595,1749255046629,-440.0,0.00021917,2]
[364822596,1749255046638,-440.0,0.00021917,2]
[364822597,1749255046647,-330.0,0.00021917,2]
[364822598,1749255046657,-440.0,0.00021917,2]
[364822599,1749255046667,-440.0,0.00021917,2]
[364822600,1749255046681,-1632.05,0.00021917,2]
[364822601,1749255046691,-330.0,0.00021917,2]
[364822602,1749255046702,-440.0,0.00021917,2]
[364822603,1749255046711,-440.0,0.00021917,2]
[364822604,1749255046723,-878.96,0.00021917,2]
[364822605,1749255046737,-440.0,0.00021917,2]
[364822606,1749255046747,-500.0,0.00021917,2]
[364822607,1749255046757,-500.0,0.00021917,2]
[364822608,1749255046767,-500.0,0.00021917,2]
[364822609,1749255046776,-500.0,0.00021917,2]
[364822610,1749255046786,-500.0,0.00021917,2]
[364822611,1749255046796,-500.0,0.00021917,2]
[364822612,1749255046806,-596.71,0.00021917,2]
[364822613,1749255046815,-570.15,0.00021917,2]
[364822614,1749255046825,-2752.03,0.00021917,2]
[364822615,1749255046835,-579.14,0.00021917,2]
[364822616,1749255046844,-440.0,0.00021917,2]
[364822617,1749255046854,-440.0,0.00021917,2]
[364822618,1749255046864,-3769.0,0.00021917,2]
[364822619,1749255046874,-1680.78,0.00021917,2]
[364822620,1749255046885,-715.08884394,0.00021969,6]
[364822621,1749255046894,-701.71,0.00021999,2]
[364822622,1749255046904,-139254.2693409,0.00022,2]
[364822623,1749255046913,-20120.43108639,0.00022,3]
[364822624,1749255046922,-842.5625,0.00022,3]
[364822625,1749255046932,-151.0,0.00022,7]
[364822626,1749255046941,-55532.85,0.00022,2]
[364822627,1749255046951,-151.0,0.000221,7]
[364822628,1749255046960,-715.08884394,0.00022141,6]
[364822629,1749255046970,-215.0738,0.00022176,2]
[364822630,1749255046980,-151.0,0.00022191,7]
[364822631,1749255046991,-151.0,0.00022191,7]
[364822632,1749255047001,-440.0,0.00022191,2]
[364822633,1749255047012,-646.407035,0.00022191,7]
[364822634,1749255047022,-646.407035,0.00022191,7]
[364822635,1749255047031,-1946.927281,0.00022191,2]
[364822636,1749255047041,-1946.927281,0.00022191,2]
[364822637,1749255047051,-640.15,0.00022191,2]
[364822638,1749255047060,-4753.64,0.00022191,2]
[364822639,1749255047069,-1050.35,0.00022191,2]
[364822640,1749255047079,-3090.81,0.00022191,2]
[364822641,1749255047088,-440.0,0.00022191,2]
[364822642,1749255047103,-704.83,0.00022191,2]
[364822643,1749255047114,-1715.61,0.00022191,2]
[364822644,1749255047123,-2851.73,0.00022191,2]
[364822645,1749255047134,-1510.1,0.00022191,2]
[364822646,1749255047144,-491.82,0.00022191,2]
[364822647,1749255047153,-440.0,0.00022191,2]
[364822648,1749255047163,-440.0,0.00022191,2]
[364822649,1749255047173,-577.36,0.00022191,2]
[364822650,1749255047182,-440.0,0.00022191,2]
[364822651,1749255047192,-440.0,0.00022191,2]
[364822652,1749255047202,-440.0,0.00022191,2]
[364822653,1749255047218,-440.0,0.00022191,2]
[364822654,1749255047228,-1349.1,0.00022191,2]
[364822655,1749255047238,-440.0,0.00022191,2]
[364822656,1749255047247,-440.0,0.00022191,2]
[364822657,1749255047257,-440.0,0.00022191,2]
[364822658,1749255047266,-440.0,0.00022191,2]
[364822659,1749255047277,-440.0,0.00022191,2]
[364822660,1749255047288,-440.0,0.00022191,2]
[364822661,1749255047299,-1632.05,0.00022191,2]
[364822662,1749255047310,-440.0,0.00022191,2]
[364822663,1749255047424,-440.0,0.00022191,2]
[364822664,1749255047434,-878.96,0.00022191,2]
[364822665,1749255047443,-440.0,0.00022191,2]
[364822666,1749255047453,-596.71,0.00022191,2]
[364822667,1749255047463,-2752.03,0.00022191,2]
[364822668,1749255047473,-579.14,0.00022191,2]
[364822669,1749255047482,-440.0,0.00022191,2]
[364822670,1749255047493,-440.0,0.00022191,2]
[364822671,1749255047502,-3769.0,0.00022191,2]
[364822672,1749255047512,-1680.78,0.00022191,2]
[364822673,1749255047522,-585.55,0.000222,7]
[364822674,1749255047532,-1978.95106066,0.00022228,2]
[364822675,1749255047542,-1200.0,0.00022244,2]
[364822676,1749255047551,-369.65,0.000223,7]
[364822677,1749255047561,-715.08884394,0.00022314,7]
[364822678,1749255047570,-1500.0,0.00022402,2]
[364822679,1749255047579,-5000.0,0.00022451,2]
[364822680,1749255047589,-440.0,0.00022465,2]
[364822681,1749255047599,-500.0,0.00022465,2]
[364822682,1749255047608,-640.15,0.00022465,2]
[364822683,1749255047617,-4753.64,0.00022465,2]
[364822684,1749255047627,-1050.35,0.00022465,2]
[364822685,1749255047636,-3090.81,0.00022465,2]
[364822686,1749255047645,-440.0,0.00022465,2]
[364822687,1749255047655,-704.83,0.00022465,2]
[364822688,1749255047664,-1715.61,0.00022465,2]
[364822689,1749255047673,-2851.73,0.00022465,2]
[364822690,1749255047683,-1510.1,0.00022465,2]
[364822691,1749255047692,-491.82,0.00022465,2]
[364822692,1749255047702,-440.0,0.00022465,2]
[364822693,1749255047712,-440.0,0.00022465,2]
[364822694,1749255047722,-577.36,0.00022465,2]
[364822695,1749255047735,-440.0,0.00022465,2]
[364822696,1749255047745,-440.0,0.00022465,2]
[364822697,1749255047755,-440.0,0.00022465,2]
[364822698,1749255047764,-440.0,0.00022465,2]
[364822699,1749255047774,-1349.1,0.00022465,2]
[364822700,1749255047784,-440.0,0.00022465,2]
[364822701,1749255047794,-440.0,0.00022465,2]
[364822702,1749255047804,-440.0,0.00022465,2]
[364822703,1749255047814,-440.0,0.00022465,2]
[364822704,1749255047824,-440.0,0.00022465,2]
[364822705,1749255047833,-1632.05,0.00022465,2]
[364822706,1749255047843,-440.0,0.00022465,2]
[364822707,1749255047853,-878.96,0.00022465,2]
[364822708,1749255047863,-440.0,0.00022465,2]
[364822709,1749255047874,-596.71,0.00022465,2]
[364822710,1749255047884,-2752.03,0.00022465,2]
[364822711,1749255047894,-579.14,0.00022465,2]
[364822712,1749255047904,-440.0,0.00022465,2]
[364822713,1749255047919,-300.0,0.00022465,2]
[364822714,1749255047929,-3769.0,0.00022465,2]
[364822715,1749255047938,-1680.78,0.00022465,2]
[364822716,1749255047947,-962.0,0.00022485,2]
[364822717,1749255047956,-405.0,0.00022485,2]
[364822718,1749255047965,-715.08884394,0.00022486,7]
[364822719,1749255047975,-151.0,0.000225,9]
[364822720,1749255047984,-263.13372944,0.00022558,2]
[364822721,1749255047995,-715.08884394,0.00022659,7]
[364822722,1749255048004,-701.71,0.00022738,2]
[364822723,1749255048014,-701.71,0.00022738,2]
[364822724,1749255048023,-701.71,0.00022738,2]
[364822725,1749255048032,-701.71,0.00022738,2]
[364822726,1749255048042,-701.8180297,0.00022738,2]
[364822727,1749255048051,-440.0,0.00022739,2]
[364822728,1749255048060,-640.15,0.00022739,2]
[364822729,1749255048070,-4753.64,0.00022739,2]
[364822730,1749255048079,-1050.35,0.00022739,2]
[364822731,1749255048089,-3090.81,0.00022739,2]
[364822732,1749255048099,-440.0,0.00022739,2]
[364822733,1749255048108,-704.83,0.00022739,2]
[364822734,1749255048118,-1715.61,0.00022739,2]
[364822735,1749255048127,-2851.73,0.00022739,2]
[364822736,1749255048136,-1510.1,0.00022739,2]
[364822737,1749255048146,-491.82,0.00022739,2]
[364822738,1749255048155,-440.0,0.00022739,2]
[364822739,1749255048165,-440.0,0.00022739,2]
[364822740,1749255048174,-577.36,0.00022739,2]
[364822741,1749255048184,-440.0,0.00022739,2]
[364822742,1749255048201,-440.0,0.00022739,2]
[364822743,1749255048218,-440.0,0.00022739,2]
[364822744,1749255048231,-440.0,0.00022739,2]
[364822745,1749255048248,-1349.1,0.00022739,2]
[364822746,1749255048264,-440.0,0.00022739,2]
[364822747,1749255048279,-440.0,0.00022739,2]
[364822748,1749255048297,-440.0,0.00022739,2]
[364822749,1749255048313,-440.0,0.00022739,2]
[364822750,1749255048328,-475.42,0.00022739,2]
[364822751,1749255048342,-1632.05,0.00022739,2]
[364822752,1749255048357,-440.0,0.00022739,2]
[364822753,1749255048372,-878.96,0.00022739,2]
[364822754,1749255048384,-440.0,0.00022739,2]
[364822755,1749255048398,-596.71,0.00022739,2]
[364822756,1749255048411,-2752.03,0.00022739,2]
[364822757,1749255048428,-579.14,0.00022739,2]
[364822758,1749255048446,-440.0,0.00022739,2]
[364822759,1749255048463,-3769.0,0.00022739,2]
[364822760,1749255048475,-1680.78,0.00022739,2]
[364822761,1749255048488,-587.0,0.0002277,2]
[364822762,1749255048502,-587.0,0.0002277,2]
[364822763,1749255048519,-500.90304838,0.0002278,8]
[364822764,1749255048531,-638.0,0.000228,2]
[364822765,1749255048544,-715.08884394,0.00022831,8]
[364822766,1749255048560,-151.0,0.000229,7]
[364822767,1749255048572,-2000.0,0.0002295,2]
[364822768,1749255048584,-151.0,0.00023,7]
[364822769,1749255048597,-5000.0,0.00023,2]
[364822770,1749255048609,-229.52673067,0.00023,3]
[364822771,1749255048623,-188.0,0.00023,7]
[364822772,1749255048636,-834.50537533,0.00023,3]
[364822773,1749255048649,-715.08884394,0.00023003,8]
[364822774,1749255048662,-151.0,0.00023013,7]
[364822775,1749255048675,-440.0,0.00023013,2]
[364822776,1749255048689,-500.0,0.00023013,2]
[364822777,1749255048702,-640.15,0.00023013,2]
[364822778,1749255048715,-4753.64,0.00023013,2]
[364822779,1749255048730,-1050.35,0.00023013,2]
[364822780,1749255048744,-3090.81,0.00023013,2]
[364822781,1749255048758,-440.0,0.00023013,2]
[364822782,1749255048772,-704.83,0.00023013,2]
[364822783,1749255048785,-1715.61,0.00023013,2]
[364822784,1749255048797,-2851.73,0.00023013,2]
[364822785,1749255048810,-1510.1,0.00023013,2]
[364822786,1749255048823,-491.82,0.00023013,2]
[364822787,1749255048835,-440.0,0.00023013,2]
[364822788,1749255048848,-440.0,0.00023013,2]
[364822789,1749255048860,-577.36,0.00023013,2]
[364822790,1749255048874,-440.0,0.00023013,2]
[364822791,1749255048887,-440.0,0.00023013,2]
[364822792,1749255048899,-440.0,0.00023013,2]
[364822793,1749255048909,-440.0,0.00023013,2]
[364822794,1749255048918,-1349.1,0.00023013,2]
[364822795,1749255048928,-440.0,0.00023013,2]
[364822796,1749255048937,-440.0,0.00023013,2]
[364822797,1749255048947,-440.0,0.00023013,2]
[364822798,1749255048957,-440.0,0.00023013,2]
[364822799,1749255048967,-1632.05,0.00023013,2]